bitfinex-derivatives/quotes_SOLF0:USTF0_20240923
["timestamp","ask_amount","ask_price","bid_price","bid_amount"]
[1727079210325,6.93252934,144.6,144.54,3.4593]
[1727079211015,3.4582,144.59,144.54,3.4593]
[1727079212014,3.44545957,144.6,144.53,3.4595]
[1727079212220,18.59,144.62,144.52,4.168]
[1727079212419,3.458,144.6,144.54,3.4592]
[1727079212620,3.458,144.6,144.52,4.168]
[1727079212822,4.38766611,144.63,144.52,4.168]
[1727079213226,4.38766611,144.63,144.54,3.4592]
[1727079214826,4.38766611,144.63,144.55,3.4591]
[1727079215028,3.4581,144.6,144.55,3.4591]
[1727079215325,3.4581,144.6,144.52,4.168]
[1727079215525,3.4581,144.6,144.54,3.4592]
[1727079216026,3.4581,144.6,144.55,3.459]
[1727079216824,4.38766611,144.63,144.52,22.758]
[1727079217331,3.4579,144.61,144.52,22.758]
[1727079217823,1.0,144.63,144.55,18.59]
[1727079218030,1.0,144.63,144.58,3.4583]
[1727079218223,1.0,144.63,144.55,18.59]
[1727079218622,1.0,144.63,144.58,3.4583]
[1727079218928,1.0,144.63,144.55,18.59]
[1727079219122,3.4577,144.61,144.56,3.4588]
[1727079219327,3.4577,144.61,144.52,22.758]
[1727079219731,1.0,144.63,144.55,3.459]
[1727079219732,3.458,144.6,144.55,3.459]
[1727079220433,3.4583,144.59,144.53,11.63]
[1727079220626,11.63,144.62,144.53,11.63]
[1727079221028,3.4582,144.59,144.53,11.63]
[1727079221635,3.4582,144.59,144.55,3.459]
[1727079223136,3.458,144.6,144.56,3.4587]
[1727079223637,11.63,144.62,144.56,3.4587]
[1727079223937,3.4583,144.59,144.55,15.0891]
[1727079224437,3.4583,144.59,144.55,3.4591]
[1727079224932,3.458,144.6,144.55,11.63]
[1727079225136,1.0,144.63,144.55,11.63]
[1727079226227,3.458,144.6,144.55,15.089]
[1727079227434,3.458,144.6,144.56,3.4589]
[1727079227837,11.63,144.59,144.52,4.168]
[1727079228247,3.4593,144.55,144.52,2.7421]
[1727079229346,3.4593,144.55,144.52,1.4096]
[1727079230243,3.42239675,144.56,144.52,1.4096]
[1727079230546,11.63,144.57,144.52,1.4096]
[1727079230944,11.63,144.55,144.49,8.77668674]
[1727079231146,15.13789609,144.55,144.49,8.77668674]
[1727079232239,3.4598,144.53,144.49,8.77668674]
[1727079234245,3.4599,144.52,144.49,8.77668674]
[1727079234448,11.63,144.54,144.49,8.77668674]
[1727079234949,15.16710883,144.54,144.49,8.77668674]
[1727079235645,11.63,144.52,144.49,8.77668674]
[1727079236252,3.4603,144.5,144.49,8.77668674]
[1727079236548,15.0903,144.5,144.49,8.77668674]
[1727079239249,3.4603,144.5,144.49,8.77668674]
[1727079239554,3.53710883,144.54,144.49,8.77668674]
[1727079239555,11.63,144.52,144.49,8.77668674]
[1727079239749,15.16710883,144.54,144.49,8.77668674]
[1727079239955,11.63,144.54,144.49,8.77668674]
[1727079240456,15.10208841,144.54,144.49,8.77668674]
[1727079241558,11.63,144.52,144.49,8.77668674]
[1727079241853,3.4603,144.5,144.49,8.77668674]
[1727079244053,3.4601,144.51,144.49,8.77668674]
[1727079244652,18.54467126,144.52,144.49,8.77668674]
[1727079245655,15.08477126,144.52,144.49,8.77668674]
[1727079247055,3.4603,144.51,144.49,8.77668674]
[1727079249257,3.4603,144.5,144.49,8.77668674]
[1727079250859,3.4602,144.51,144.49,8.77668674]
[1727079251059,15.08477126,144.52,144.49,8.77668674]
[1727079251356,3.45477126,144.52,144.49,8.77668674]
[1727079251557,3.4598,144.53,144.49,8.77668674]
[1727079251759,3.48950758,144.52,144.49,8.77668674]
[1727079256163,18.57960758,144.52,144.49,8.77668674]
[1727079256358,7.44,144.5,144.49,8.77668674]
[1727079256857,7.44,144.51,144.49,8.77668674]
[1727079257262,3.53067442,144.52,144.49,8.77668674]
[1727079257263,7.44,144.5,144.49,8.77668674]
[1727079259565,10.9003,144.5,144.49,8.77668674]
[1727079267172,10.9003,144.5,144.49,5.31560753]
[1727079267874,3.461,144.48,144.42,13.6144]
[1727079268174,7.44,144.46,144.42,13.6144]
[1727079269976,10.9013,144.46,144.42,13.6144]
[1727079272271,3.4615,144.45,144.42,13.6144]
[1727079272472,7.44,144.46,144.42,2.7122]
[1727079272976,3.4618,144.44,144.42,2.7122]
[1727079274174,3.462,144.43,144.42,2.7122]
[1727079274578,10.902,144.43,144.42,2.7122]
[1727079276279,3.4624,144.42,144.38,10.9031]
[1727079277677,3.4625,144.41,144.38,10.9031]
[1727079278080,3.43931837,144.47,144.39,3.463]
[1727079278281,3.4622,144.43,144.39,10.903]
[1727079278583,7.44,144.44,144.39,10.903]
[1727079279374,3.4621,144.43,144.39,10.903]
[1727079280475,10.9019,144.44,144.4,3.4627]
[1727079280680,3.4619,144.44,144.41,7.44]
[1727079280980,7.44,144.45,144.41,7.44]
[1727079281283,3.4618,144.44,144.41,7.44]
[1727079281483,10.9018,144.44,144.4,7.44]
[1727079284382,4.59386178,144.51,144.41,7.44]
[1727079284682,7.44,144.46,144.42,2.8463]
[1727079285084,10.9015,144.46,144.42,2.8463]
[1727079285285,1.0,144.5,144.43,7.44]
[1727079285581,7.44,144.47,144.43,7.44]
[1727079285783,7.44,144.47,144.43,10.902]
[1727079286285,10.9011,144.47,144.43,7.44]
[1727079287183,10.9011,144.47,144.43,10.902]
[1727079287184,7.44,144.47,144.43,10.902]
[1727079288791,7.44,144.47,144.44,3.4617]
[1727079288989,1.0,144.5,144.44,7.44]
[1727079289280,7.44,144.49,144.45,7.44]
[1727079289488,7.44,144.49,144.45,10.9014]
[1727079290289,7.44,144.48,144.45,3.4614]
[1727079290589,7.44,144.47,144.44,10.9017]
[1727079290789,7.44,144.48,144.44,10.9017]
[1727079292288,1.0,144.5,144.46,7.44]
[1727079292682,8.44,144.5,144.46,7.44]
[1727079293383,8.44,144.5,144.43,4.79526382]
[1727079293589,1.0,144.5,144.44,7.44]
[1727079293888,7.44,144.48,144.44,7.44]
[1727079294590,7.44,144.48,144.45,3.4615]
[1727079296587,7.44,144.46,144.43,1.3682]
[1727079296989,10.9015,144.46,144.43,1.3682]
[1727079297193,7.44,144.46,144.43,1.3682]
[1727079297585,3.4617,144.45,144.43,1.3682]
[1727079298285,3.4618,144.44,144.42,2.8463]
[1727079298892,10.9018,144.44,144.42,2.8463]
[1727079299195,10.9018,144.44,144.42,1.4352]
[1727079299588,10.9016,144.45,144.42,1.4352]
[1727079300595,10.9016,144.45,144.42,4.8974]
[1727079301190,10.9018,144.44,144.42,1.4352]
[1727079302096,2.3543,144.5,144.42,1.4352]
[1727079302097,10.902,144.43,144.42,1.4352]
[1727079302396,10.902,144.43,144.39,3.4629]
[1727079302794,3.4623,144.42,144.39,3.4629]
[1727079302995,7.44,144.43,144.39,3.4629]
[1727079303588,10.9022,144.43,144.39,3.4629]
[1727079303796,3.4622,144.43,144.4,7.44]
[1727079304300,10.9022,144.43,144.4,3.4626]
[1727079305003,3.4622,144.43,144.4,3.4626]
[1727079305201,3.4622,144.43,144.4,10.9026]
[1727079305497,3.4622,144.43,144.41,3.4625]
[1727079306101,3.4622,144.43,144.4,10.9027]
[1727079306802,3.4623,144.42,144.39,3.4628]
[1727079307003,7.44,144.41,144.38,1.3285]
[1727079307401,3.463,144.39,144.38,1.3285]
[1727079308497,3.4629,144.4,144.38,1.3285]
[1727079308906,10.83960554,144.41,144.38,1.3285]
[1727079309202,7.44,144.4,144.33,1.4541]
[1727079309402,7.44,144.4,144.35,7.44]
[1727079309896,3.4631,144.39,144.35,7.44]
[1727079310094,7.44,144.4,144.33,6.38936572]
[1727079310300,7.44,144.4,144.35,7.44]
[1727079311304,7.44,144.38,144.34,3.4641]
[1727079311801,3.4635,144.37,144.34,3.4641]
[1727079312303,3.39960554,144.41,144.34,10.9041]
[1727079312605,3.4634,144.38,144.35,10.9039]
[1727079313106,7.44,144.39,144.35,7.44]
[1727079313599,3.4634,144.38,144.35,7.44]
[1727079314002,3.4634,144.38,144.35,10.9038]
[1727079314300,3.4634,144.38,144.33,2.8886]
[1727079314301,3.4635,144.37,144.33,2.8886]
[1727079314506,3.4635,144.37,144.34,7.44]
[1727079314705,3.4635,144.37,144.34,10.904]
[1727079315698,3.47654469,144.4,144.36,7.44]
[1727079315896,7.44,144.41,144.36,7.44]
[1727079316093,10.95237091,144.4,144.36,7.44]
[1727079316297,7.44,144.4,144.36,7.44]
[1727079316499,7.44,144.39,144.35,7.44]
[1727079317100,1.7726,144.48,144.35,7.44]
[1727079317301,7.44,144.4,144.36,7.44]
[1727079317504,10.89114345,144.4,144.36,7.44]
[1727079317701,10.89114345,144.4,144.35,3.4639]
[1727079317702,7.44,144.39,144.35,3.4639]
[1727079318808,3.4632,144.38,144.35,3.4639]
[1727079319101,3.4632,144.38,144.34,10.9041]
[1727079319300,3.4632,144.38,144.34,7.44]
[1727079320105,3.4635,144.37,144.34,3.4641]
[1727079320296,3.4635,144.37,144.33,10.3286]
[1727079320807,3.4635,144.37,144.35,7.44]
[1727079321007,7.44,144.38,144.33,8.8745]
[1727079321503,3.4635,144.37,144.33,12.3388]
[1727079321915,7.44,144.34,144.28,2.7267]
[1727079322111,1.0,144.47,144.16,225.0]
[1727079322305,1.0,144.47,144.23,1.4019]
[1727079322306,7.44,144.29,144.23,1.4019]
[1727079322510,7.44,144.29,144.24,8.8992]
[1727079322906,1.4382,144.36,144.24,1.4592]
[1727079323403,7.44,144.32,144.27,7.44]
[1727079323704,1.4028,144.37,144.31,7.44]
[1727079324015,1.4028,144.37,144.32,7.44]
[1727079324309,7.44,144.36,144.32,10.9045]
[1727079324710,1.4028,144.37,144.32,7.44]
[1727079325012,7.44,144.37,144.33,3.4643]
[1727079325701,7.44,144.37,144.32,7.44]
[1727079325905,3.463,144.39,144.24,1.4592]
[1727079325906,7.44,144.36,144.24,1.4592]
[1727079326109,7.44,144.36,144.31,7.44]
[1727079326305,3.39341932,144.39,144.33,7.44]
[1727079326610,7.44,144.38,144.33,7.44]
[1727079327609,7.44,144.35,144.31,7.44]
[1727079327807,1.3731,144.43,144.31,7.44]
[1727079328004,7.44,144.36,144.31,7.44]
[1727079328206,7.44,144.36,144.32,3.4645]
[1727079328606,1.0,144.42,144.34,7.44]
[1727079328812,7.44,144.39,144.34,7.44]
[1727079329009,7.44,144.39,144.35,3.4639]
[1727079329506,7.44,144.36,144.31,2.7392]
[1727079329808,7.44,144.36,144.31,10.1792]
[1727079330012,7.44,144.36,144.33,3.4643]
[1727079332013,7.44,144.36,144.32,3.4646]
[1727079332512,7.44,144.35,144.32,3.4646]
[1727079332707,7.44,144.35,144.31,1.3503]
[1727079333015,7.44,144.34,144.31,1.3503]
[1727079333315,7.44,144.32,144.27,7.44]
[1727079333509,1.4371,144.37,144.29,7.44]
[1727079333715,1.4371,144.37,144.34,3.4641]
[1727079333921,1.4371,144.37,144.33,7.44]
[1727079334312,4.9006,144.37,144.33,10.9042]
[1727079334713,1.4371,144.37,144.33,7.44]
[1727079334920,1.0,144.42,144.34,7.44]
[1727079335125,7.44,144.39,144.34,7.44]
[1727079335507,10.9031,144.39,144.34,10.904]
[1727079336216,10.9034,144.38,144.33,7.44]
[1727079336417,3.4634,144.38,144.31,11.65]
[1727079336619,3.4634,144.38,144.33,3.4642]
[1727079337121,3.4631,144.39,144.32,1.3408]
[1727079337322,11.65,144.4,144.33,11.65]
[1727079337724,1.0,144.42,144.35,11.65]
[1727079338424,1.0,144.42,144.36,3.4637]
[1727079338625,1.0,144.42,144.35,11.65]
[1727079338820,4.4624,144.42,144.37,3.4633]
[1727079339728,3.4625,144.41,144.36,3.4636]
[1727079340829,4.4623,144.42,144.37,3.4633]
[1727079341626,3.4625,144.41,144.36,3.4636]
[1727079341826,11.65,144.41,144.33,14.3764]
[1727079342026,11.65,144.41,144.32,1.3408]
[1727079342422,11.65,144.38,144.32,1.3408]
[1727079342634,15.08138953,144.38,144.32,1.3408]
[1727079343138,11.65,144.36,144.27,11.65]
[1727079343324,3.464,144.35,144.27,12.9941]
[1727079343525,11.65,144.36,144.27,12.9941]
[1727079343732,3.39490482,144.35,144.27,12.9941]
[1727079344232,15.04490482,144.35,144.27,12.9941]
[1727079345227,3.4642,144.34,144.28,3.4654]
[1727079346034,11.65,144.33,144.27,3.4658]
[1727079346426,11.65,144.33,144.25,11.65]
[1727079346738,11.65,144.33,144.26,3.466]
[1727079347436,3.39490482,144.35,144.23,15.8288]
[1727079347437,11.65,144.31,144.23,15.8288]
[1727079347827,3.4654,144.3,144.25,3.4662]
[1727079348034,1.0,144.32,144.23,15.8288]
[1727079348425,1.0,144.32,144.28,5.0]
[1727079348934,1.0,144.32,144.28,8.4655]
[1727079349129,1.0,144.32,144.28,5.0]
[1727079350034,4.4647,144.32,144.28,5.0]
[1727079350638,1.0,144.32,144.28,8.4656]
[1727079351437,4.4647,144.32,144.28,5.0]
[1727079352132,3.4649,144.31,144.28,5.0]
[1727079352433,11.65,144.29,144.05,20.71]
[1727079352635,11.65,144.29,144.21,1.3723]
[1727079352841,11.65,144.29,144.23,3.4668]
[1727079352842,3.4659,144.27,144.23,3.4668]
[1727079353136,15.18626404,144.29,144.23,3.4668]
[1727079353440,3.4654,144.29,144.22,11.65]
[1727079353834,3.4656,144.28,144.22,11.65]
[1727079354132,1.0,144.3,144.22,11.65]
[1727079354338,1.0,144.3,144.21,13.0223]
[1727079354540,3.4659,144.27,144.23,3.4667]
[1727079354735,11.65,144.29,144.21,13.0223]
[1727079355235,3.466,144.27,144.23,3.4667]
[1727079355433,11.65,144.29,144.21,13.0223]
[1727079356035,3.4657,144.28,144.24,3.4664]
[1727079357441,3.4659,144.27,144.23,3.4667]
[1727079357838,3.4659,144.27,144.21,13.0223]
[1727079358138,3.4657,144.28,144.21,1.3723]
[1727079358638,3.4657,144.28,144.25,3.4663]
[1727079359245,11.65,144.29,144.22,1.3315]
[1727079359744,15.1154,144.29,144.25,3.4662]
[1727079362144,15.1154,144.29,144.22,1.3315]
[1727079362145,3.4657,144.28,144.24,3.4665]
[1727079362340,11.65,144.29,144.24,3.4665]
[1727079362648,3.4657,144.28,144.23,3.4666]
[1727079362844,3.4657,144.28,144.22,1.3315]
[1727079363145,3.4657,144.28,144.24,3.4666]
[1727079363346,15.1155,144.29,144.22,1.3315]
[1727079363745,15.1155,144.29,144.25,3.4663]
[1727079364349,7.46,144.27,144.25,3.4663]
[1727079365146,7.46,144.26,144.24,3.4665]
[1727079365449,7.46,144.26,144.22,8.7915]
[1727079366646,7.46,144.25,144.22,1.3315]
[1727079366852,7.46,144.24,144.21,1.3723]
[1727079367049,7.46,144.24,144.22,3.467]
[1727079367347,2.3574,144.3,144.22,7.46]
[1727079367548,7.46,144.27,144.22,7.46]
[1727079367953,7.46,144.25,144.21,1.3723]
[1727079368158,7.46,144.25,144.21,8.8323]
[1727079368646,1.0,144.3,144.24,7.46]
[1727079368952,3.47274285,144.31,144.26,7.46]
[1727079369149,7.46,144.31,144.28,3.4656]
[1727079369350,7.46,144.3,144.28,3.4656]
[1727079369942,7.46,144.3,144.26,7.46]
[1727079370752,3.47697961,144.32,144.26,7.46]
[1727079370949,7.46,144.31,144.26,7.46]
[1727079371346,10.925,144.31,144.27,3.4657]
[1727079371553,7.46,144.31,144.26,7.46]
[1727079372253,3.43502981,144.32,144.26,7.46]
[1727079372550,99.32926175,144.35,144.21,1.3723]
[1727079372754,7.46,144.23,144.21,1.3723]
[1727079374654,10.9268,144.23,144.21,1.3723]
[1727079374950,7.46,144.22,144.18,1.3692]
[1727079375260,1.4058,144.3,144.18,1.3692]
[1727079375261,7.46,144.2,144.18,1.3692]
[1727079376257,7.46,144.19,144.13,1.4374]
[1727079376445,11.66,144.2,144.13,2.8156]
[1727079376646,15.0486075,144.22,144.13,14.4756]
[1727079376845,11.66,144.24,144.15,11.66]
[1727079377047,11.66,144.24,144.16,1.4503]
[1727079377253,3.4674,144.21,144.16,1.4503]
[1727079377651,3.4674,144.21,144.17,3.4682]
[1727079378647,3.4674,144.21,144.16,1.4503]
[1727079381367,3.4676,144.2,144.17,3.4681]
[1727079383056,3.468,144.18,144.15,3.4687]
[1727079383261,11.66,144.22,144.13,14.4756]
[1727079383655,3.4679,144.19,144.13,14.4756]
[1727079383850,15.10376604,144.25,144.15,11.66]
[1727079384054,3.4672,144.22,144.18,3.4678]
[1727079384253,3.4672,144.22,144.15,11.66]
[1727079384458,15.14157912,144.25,144.15,11.66]
[1727079384653,3.4672,144.22,144.15,11.66]
[1727079385058,15.14157912,144.25,144.15,11.66]
[1727079385258,3.4673,144.21,144.18,3.4679]
[1727079386258,15.14157912,144.25,144.14,1.4042]
[1727079386460,11.66,144.23,144.14,13.0642]
[1727079387262,15.14796058,144.23,144.14,13.0642]
[1727079387462,3.48796058,144.23,144.14,13.0642]
[1727079387660,1.0,144.24,144.18,11.66]
[1727079388067,1.0,144.24,144.16,11.66]
[1727079388656,3.4672,144.22,144.19,3.4676]
[1727079388962,1.0,144.24,144.16,11.66]
[1727079389168,3.4672,144.22,144.18,3.4678]
[1727079389368,3.4672,144.22,144.16,11.66]
[1727079390372,1.0,144.24,144.16,11.66]
[1727079390964,1.0,144.24,144.18,3.4678]
[1727079391561,1.0,144.24,144.16,11.66]
[1727079391562,3.4672,144.22,144.16,11.66]
[1727079392666,3.4672,144.22,144.19,3.4676]
[1727079392971,3.4669,144.23,144.16,11.66]
[1727079393273,1.0,144.24,144.18,3.4679]
[1727079393868,1.0,144.24,144.19,3.4677]
[1727079394369,3.4672,144.22,144.19,3.4677]
[1727079394563,1.0,144.24,144.2,3.4674]
[1727079394765,4.4667,144.24,144.18,11.66]
[1727079395374,4.4667,144.24,144.2,3.4674]
[1727079396069,1.0,144.24,144.22,3.467]
[1727079396269,1.0,144.24,144.19,1.4321]
[1727079396972,11.66,144.25,144.19,1.4321]
[1727079396973,15.10606083,144.25,144.19,1.4321]
[1727079397169,15.10606083,144.25,144.21,3.4672]
[1727079397770,11.66,144.27,144.19,1.4321]
[1727079397968,11.66,144.27,144.19,2.8361]
[1727079398472,6.97147998,144.26,144.22,3.4669]
[1727079399773,3.50537998,144.26,144.22,3.4669]
[1727079402176,3.50537998,144.26,144.23,3.4668]
[1727079402774,1.422,144.3,144.25,3.4663]
[1727079402981,11.66,144.31,144.22,11.66]
[1727079403277,3.4652,144.3,144.22,11.66]
[1727079403478,3.4652,144.3,144.26,3.4661]
[1727079403775,3.465,144.31,144.24,11.66]
[1727079403977,99.32926175,144.35,144.26,11.66]
[1727079404273,114.45336175,144.35,144.26,11.66]
[1727079404475,110.98926175,144.35,144.3,3.4651]
[1727079405180,114.45326175,144.35,144.3,3.4651]
[1727079405380,110.98926175,144.35,144.3,3.4651]
[1727079405579,11.66,144.33,144.27,4.037]
[1727079406081,15.1246,144.33,144.29,3.4654]
[1727079406481,11.66,144.33,144.27,4.037]
[1727079406881,15.1245,144.33,144.28,3.4654]
[1727079407484,3.4648,144.32,144.27,7.5028]
[1727079407675,11.66,144.33,144.27,4.037]
[1727079408183,11.66,144.33,144.23,11.66]
[1727079408986,11.66,144.31,144.23,11.66]
[1727079410091,3.4654,144.29,144.25,3.4662]
[1727079410589,3.4655,144.29,144.25,3.4662]
[1727079411889,11.66,144.27,144.21,4.0536]
[1727079412292,3.4665,144.25,144.21,4.0536]
[1727079412590,11.66,144.27,144.21,4.0536]
[1727079412993,3.4665,144.25,144.21,4.0536]
[1727079413182,11.66,144.27,144.21,4.0536]
[1727079413385,11.66,144.31,144.22,11.66]
[1727079413995,3.4659,144.27,144.22,11.66]
[1727079414195,3.4659,144.27,144.21,4.0536]
[1727079414591,3.4659,144.27,144.24,3.4664]
[1727079415690,3.4657,144.28,144.25,3.4663]
[1727079416094,11.66,144.31,144.25,3.4663]
[1727079418298,3.4655,144.29,144.25,3.4663]
[1727079418502,11.66,144.31,144.26,3.4661]
[1727079418998,3.4653,144.3,144.26,3.4661]
[1727079420190,3.4654,144.29,144.25,3.4662]
[1727079420396,11.66,144.29,144.21,4.0536]
[1727079420701,3.4659,144.27,144.23,3.4668]
[1727079420896,11.66,144.29,144.21,4.0536]
[1727079421293,3.4661,144.26,144.22,3.4669]
[1727079421500,11.66,144.29,144.21,4.0536]
[1727079421897,3.466,144.27,144.23,3.4667]
[1727079423410,11.66,144.27,144.21,4.0536]
[1727079423609,15.14071854,144.27,144.21,4.0536]
[1727079423807,3.4665,144.25,144.21,7.5207]
[1727079424307,3.4665,144.25,144.21,4.8522]
[1727079425198,3.4666,144.24,144.21,4.8522]
[1727079425502,15.14071854,144.27,144.21,1.3851]
[1727079425810,11.66,144.25,144.16,11.66]
[1727079426104,11.66,144.25,144.16,13.0776]
[1727079426301,3.4671,144.22,144.19,3.4676]
[1727079426508,15.12303232,144.25,144.16,13.0776]
[1727079426900,3.4666,144.24,144.21,3.4673]
[1727079427602,18.58943232,144.25,144.22,3.467]
[1727079428107,3.4666,144.24,144.21,3.4672]
[1727079428298,3.4666,144.24,144.18,11.66]
[1727079428906,3.4668,144.23,144.18,11.66]
[1727079429108,3.4668,144.23,144.16,1.4176]
[1727079429109,3.4668,144.23,144.2,3.4675]
[1727079429913,3.4666,144.24,144.21,3.4671]
[1727079430413,15.1264,144.25,144.22,3.467]
[1727079430804,3.4662,144.26,144.23,3.4668]
[1727079431209,11.66,144.29,144.2,11.66]
[1727079431511,11.66,144.29,144.21,2.7476]
[1727079431709,3.4656,144.28,144.21,2.7476]
[1727079431911,11.66,144.29,144.21,2.7476]
[1727079432807,11.66,144.29,144.23,3.4667]
[1727079433114,11.66,144.27,144.21,2.7476]
[1727079433515,15.20085738,144.27,144.21,6.2148]
[1727079434011,15.20085738,144.27,144.16,13.0776]
[1727079434012,11.66,144.25,144.16,13.0776]
[1727079434512,3.4667,144.24,144.2,3.4674]
[1727079435316,3.4667,144.24,144.16,13.0776]
[1727079435317,3.4667,144.24,144.21,3.4672]
[1727079435509,11.66,144.27,144.19,11.66]
[1727079435716,11.66,144.29,144.2,2.7483]
[1727079435910,3.4661,144.27,144.23,3.4666]
[1727079436118,11.66,144.29,144.23,3.4666]
[1727079436413,1.8868,144.34,144.2,2.7483]
[1727079436414,11.66,144.27,144.2,2.7483]
[1727079436613,3.4663,144.25,144.2,2.7483]
[1727079437107,3.4663,144.25,144.21,3.4671]
[1727079437713,3.4663,144.25,144.2,2.7483]
[1727079437714,15.08514222,144.27,144.2,2.7483]
[1727079437920,11.66,144.25,144.17,11.66]
[1727079438124,11.66,144.25,144.16,13.0776]
[1727079438513,3.41020434,144.24,144.16,13.0776]
[1727079438710,11.66,144.23,144.16,1.4176]
[1727079438914,3.4675,144.21,144.18,3.468]
[1727079439111,3.4675,144.21,144.16,1.4176]
[1727079439415,3.4675,144.21,144.17,3.4681]
[1727079439920,3.4675,144.21,144.16,1.4176]
[1727079440521,3.4675,144.21,144.18,3.4679]
[1727079441718,15.05043403,144.23,144.16,1.4176]
[1727079442324,3.4673,144.21,144.17,3.4681]
[1727079442624,3.4673,144.21,144.16,1.4176]
[1727079443422,3.4673,144.21,144.18,3.4678]
[1727079444620,11.66,144.21,144.16,1.4176]
[1727079445125,3.4679,144.19,144.16,1.4176]
[1727079445722,3.468,144.18,144.15,3.4686]
[1727079446225,11.66,144.21,144.13,1.4635]
[1727079446823,11.66,144.21,144.13,13.1235]
[1727079447325,3.4678,144.19,144.16,3.4684]
[1727079448519,3.4681,144.18,144.15,3.4687]
[1727079449528,3.4678,144.19,144.16,3.4685]
[1727079450225,3.4676,144.2,144.13,1.4635]
[1727079450419,11.66,144.21,144.13,1.4635]
[1727079450825,3.4679,144.19,144.15,3.4686]
[1727079451132,11.66,144.19,144.15,3.4686]
[1727079451424,11.66,144.19,144.13,1.4635]
[1727079452525,15.05043403,144.23,144.13,13.1235]
[1727079452721,11.66,144.23,144.13,13.1235]
[1727079452925,11.66,144.21,144.13,13.1235]
[1727079453125,11.66,144.19,144.13,1.4635]
[1727079453627,3.4682,144.18,144.13,1.4635]
[1727079453836,11.66,144.19,144.13,1.4635]
[1727079454334,7.46,144.18,144.14,7.46]
[1727079454933,7.46,144.18,144.16,3.4685]
[1727079455428,10.928,144.18,144.15,3.4686]
[1727079455735,7.46,144.17,144.13,1.4635]
[1727079456033,7.46,144.17,144.14,3.4689]
[1727079456421,7.46,144.17,144.13,1.4635]
[1727079456627,7.46,144.17,144.15,3.4687]
[1727079456930,3.4682,144.18,144.15,3.4687]
[1727079457129,10.9282,144.18,144.15,3.4687]
[1727079457934,7.46,144.18,144.14,7.46]
[1727079458432,7.46,144.18,144.13,1.4635]
[1727079458635,10.9281,144.18,144.15,3.4685]
[1727079459733,3.4683,144.17,144.14,3.4689]
[1727079460035,7.46,144.16,144.13,1.4635]
[1727079460235,7.46,144.16,144.11,7.46]
[1727079461935,7.46,144.16,144.14,3.4689]
[1727079462535,7.46,144.15,144.06,4.232]
[1727079462834,7.46,144.13,144.06,4.232]
[1727079463034,7.46,144.13,144.11,3.4696]
[1727079463332,1.3794,144.18,144.1,7.46]
[1727079463535,7.46,144.15,144.13,3.4691]
[1727079463733,7.46,144.15,144.1,7.46]
[1727079464038,7.46,144.14,144.1,7.46]
[1727079464230,7.46,144.14,144.12,3.4693]
[1727079464934,7.46,144.14,144.09,7.46]
[1727079465333,7.46,144.14,144.1,7.46]